fUST/lending_fUST_20241012
["ID","MTS","AMOUNT","RATE_DAILY","PERIOD"]
[340131997,1728667840267,-153.0,0.00047673,120]
[340131998,1728667840280,-153.0,0.00047673,120]
[340131999,1728667840293,-153.0,0.00047673,120]
[340132000,1728667840303,-153.0,0.00047673,120]
[340132001,1728667840312,-153.0,0.00047673,120]
[340132002,1728667840323,-153.0,0.00047682,120]
[340132003,1728667840332,-153.0,0.00047682,120]
[340132004,1728667840341,-243.2288028,0.000477,7]
[340132005,1728667840350,-500.0,0.000477,10]
[340132006,1728667840361,-315.40648561,0.00048,2]
[340132007,1728667840370,-507.96395165,0.0004907,10]
[340132008,1728667840380,-150.0,0.00049284,2]
[340132009,1728667840391,-526.0,0.00049284,2]
[340132010,1728667840401,-1219.0,0.00049284,2]
[340132011,1728667840411,-400.0,0.00049517,2]
[340132012,1728667840420,-1019.55144254,0.000496,2]
[340132013,1728667840429,-3055.70205314,0.00049757,28]
[340132014,1728667840439,-5000.0,0.0005,80]
[340132015,1728667840450,-1000.0,0.00052,120]
[340132016,1728667840459,-3055.70205314,0.00052614,28]
[340132017,1728667840469,-179.20443599,0.000533,120]
[340132018,1728667840478,-5156.32702104,0.0005333,120]
[340132019,1728667840487,-1000.02650872,0.00054,120]
[340132020,1728667840496,-400.0,0.00054376,2]
[340132021,1728667840505,-154.43334356,0.00054457,96]
[340132022,1728667840515,-5000.0,0.000545,90]
[340132023,1728667840525,-2000.0,0.000547,120]
[340132024,1728667840534,-1514.56782417,0.00054719,80]
[340132025,1728667840543,-565.05867755,0.00054783,120]
[340132026,1728667840553,-5311.36335014,0.00054784,8]
[340132027,1728667840562,-11901.0880421,0.00054784,8]
[340132028,1728667840571,-171.88,0.00054784,30]
[340132029,1728667840580,-309.91,0.00054784,10]
[340132030,1728667840590,-176.60100458,0.00054793,120]
[340132031,1728667840600,-526.82307357,0.00054793,120]
[340132032,1728667840609,-466.23069307,0.00054793,120]
[340132033,1728667840618,-533.46865334,0.00054793,120]
[340132034,1728667840627,-187.99270675,0.00054793,31]
[340132035,1728667840638,-500.0,0.00054794,120]
[340132036,1728667840647,-500.0,0.00054794,120]
[340132037,1728667840656,-500.0,0.00054794,120]
[340132038,1728667840665,-500.0,0.00054794,120]
[340132039,1728667840674,-161.81279525,0.00054794,120]
[340132040,1728667840683,-500.0,0.00054794,120]
[340132041,1728667840692,-932.37,0.00054794,120]
[340132042,1728667840701,-500.0,0.00054794,120]
[340132043,1728667840710,-516.55238831,0.00054794,120]
[340132044,1728667840719,-291.653942,0.00054794,120]
[340132045,1728667840728,-500.0,0.00054794,120]
[340132046,1728667840738,-500.0,0.00054794,120]
[340132047,1728667840747,-500.0,0.00054794,120]
[340132048,1728667840758,-442.26180284,0.00054794,120]
[340132049,1728667840769,-500.0,0.00054794,120]
[340132050,1728667840778,-500.0,0.00054794,120]
[340132051,1728667840788,-186.86452393,0.00054794,120]
[340132052,1728667840798,-500.0,0.00054794,120]
[340132053,1728667840810,-290.09222791,0.00054794,30]
[340132054,1728667840820,-338.08127084,0.00054794,120]
[340132055,1728667840831,-500.0,0.00054794,120]
[340132056,1728667840841,-500.0,0.00054794,120]
[340132057,1728667840853,-500.0,0.00054794,120]
[340132058,1728667840864,-500.0,0.00054794,120]
[340132059,1728667840875,-500.0,0.00054794,2]
[340132060,1728667840886,-500.0,0.00054794,120]
[340132061,1728667840895,-500.0,0.00054794,2]
[340132062,1728667840905,-500.0,0.00054794,2]
[340132063,1728667840913,-803.12,0.00054794,120]
[340132064,1728667840923,-500.0,0.00054794,120]
[340132065,1728667840932,-500.0,0.00054794,120]
[340132066,1728667840942,-500.0,0.00054794,7]
[340132067,1728667840951,-500.0,0.00054794,120]
[340132068,1728667840960,-500.0,0.00054794,120]
[340132069,1728667840970,-500.0,0.00054794,2]
[340132070,1728667840979,-558.45,0.00054794,120]
[340132071,1728667840988,-500.0,0.00054794,120]
[340132072,1728667840997,-500.0,0.00054794,120]
[340132073,1728667841006,-391.45919923,0.00054794,120]
[340132074,1728667841015,-500.0,0.00054794,120]
[340132075,1728667841024,-500.0,0.00054794,120]
[340132076,1728667841034,-500.0,0.00054794,120]
[340132077,1728667841043,-500.0,0.00054794,120]
[340132078,1728667841052,-500.0,0.00054794,120]
[340132079,1728667841060,-300.0,0.00054794,120]
[340132080,1728667841069,-500.0,0.00054794,120]
[340132081,1728667841078,-416.30358869,0.00054794,120]
[340132082,1728667841087,-500.0,0.00054794,120]
[340132083,1728667841097,-949.92,0.00054794,120]
[340132084,1728667841106,-652.66,0.00054794,30]
[340132085,1728667841115,-250.0,0.00054794,120]
[340132086,1728667841124,-285.86922968,0.00054794,120]
[340132087,1728667841135,-507.982,0.00054794,120]
[340132088,1728667841144,-545.32,0.00054794,120]
[340132089,1728667841153,-500.0,0.00054794,120]
[340132090,1728667841161,-500.0,0.00054794,120]
[340132091,1728667841171,-500.0,0.00054794,120]
[340132092,1728667841179,-497.44634701,0.00054794,120]
[340132093,1728667841188,-1200.44,0.00054794,120]
[340132094,1728667841197,-500.0,0.00054794,120]
[340132095,1728667841208,-1408.74,0.00054794,120]
[340132096,1728667841217,-1439.64,0.00054794,120]
[340132097,1728667841226,-500.0,0.00054794,2]
[340132098,1728667841235,-500.0,0.00054794,120]
[340132099,1728667841243,-500.0,0.00054794,120]
[340132100,1728667841253,-500.0,0.00054794,120]
[340132101,1728667841263,-500.0,0.00054794,120]
[340132102,1728667841275,-532.40105564,0.00054794,120]
[340132103,1728667841288,-658.49,0.00054794,120]
[340132104,1728667841297,-500.0,0.00054794,120]
[340132105,1728667841308,-500.0,0.00054794,120]
[340132106,1728667841318,-500.0,0.00054794,120]
[340132107,1728667841329,-500.0,0.00054794,120]
[340132108,1728667841339,-500.0,0.00054794,120]
[340132109,1728667841348,-500.0,0.00054794,120]
[340132110,1728667841357,-534.87,0.00054794,120]
[340132111,1728667841366,-500.0,0.00054794,120]
[340132112,1728667841377,-500.0,0.00054794,120]
[340132113,1728667841388,-1274.06,0.00054794,120]
[340132114,1728667841400,-584.61,0.00054794,120]
[340132115,1728667841411,-500.0,0.00054794,120]
[340132116,1728667841421,-500.0,0.00054794,120]
[340132117,1728667841430,-500.0,0.00054794,120]
[340132118,1728667841439,-719.72,0.00054794,120]
[340132119,1728667841449,-547.89,0.00054794,120]
[340132120,1728667841458,-500.0,0.00054794,120]
[340132121,1728667841467,-500.0,0.00054794,120]
[340132122,1728667841476,-500.0,0.00054794,120]
[340132123,1728667841485,-500.0,0.00054794,120]
[340132124,1728667841494,-500.0,0.00054794,120]
[340132125,1728667841503,-200.0,0.00054794,120]
[340132126,1728667841512,-785.83,0.00054794,120]
[340132127,1728667841521,-620.31,0.00054794,120]
[340132128,1728667841531,-500.0,0.00054794,120]
[340132129,1728667841542,-500.0,0.00054794,120]
[340132130,1728667841551,-888.0,0.00054794,120]
[340132131,1728667841560,-541.07,0.00054794,120]
[340132132,1728667841570,-500.0,0.00054794,120]
[340132133,1728667841579,-500.0,0.00054794,120]
[340132134,1728667841589,-168.79996511,0.00054794,120]
[340132135,1728667841598,-613.02,0.00054794,120]
[340132136,1728667841607,-500.0,0.00054794,120]
[340132137,1728667841617,-500.0,0.00054794,120]
[340132138,1728667841626,-500.0,0.00054794,120]
[340132139,1728667841636,-500.0,0.00054794,120]
[340132140,1728667841646,-500.0,0.00054794,120]
[340132141,1728667841654,-500.0,0.00054794,120]
[340132142,1728667841664,-598.42,0.00054794,120]
[340132143,1728667841673,-739.25,0.00054794,120]
[340132144,1728667841682,-500.0,0.00054794,120]
[340132145,1728667841691,-260.29031314,0.00054794,120]
[340132146,1728667841700,-500.0,0.00054794,120]
[340132147,1728667841709,-500.0,0.00054794,120]
[340132148,1728667841719,-500.0,0.00054794,120]
[340132149,1728667841728,-500.0,0.00054794,120]
[340132150,1728667841737,-500.0,0.00054794,120]
[340132151,1728667841747,-1373.39,0.00054794,120]
[340132152,1728667841756,-1373.39,0.00054794,120]
[340132153,1728667841765,-1373.39,0.00054794,120]
[340132154,1728667841774,-1373.39,0.00054794,120]
[340132155,1728667841783,-1373.39,0.00054794,120]
[340132156,1728667841793,-1373.39,0.00054794,120]
[340132157,1728667841802,-1373.39,0.00054794,120]
[340132158,1728667841811,-1373.39,0.00054794,120]
[340132159,1728667841820,-1000.0,0.00054794,120]
[340132160,1728667841829,-1373.39,0.00054794,120]
[340132161,1728667841838,-1373.39,0.00054794,120]
[340132162,1728667841847,-1373.39,0.00054794,120]
[340132163,1728667841856,-1373.39,0.00054794,120]
[340132164,1728667841866,-1373.39,0.00054794,120]
[340132165,1728667841875,-1373.39,0.00054794,120]
[340132166,1728667841885,-1373.39,0.00054794,120]
[340132167,1728667841901,-1373.39,0.00054794,120]
[340132168,1728667841910,-1373.39,0.00054794,120]
[340132169,1728667841920,-1373.39,0.00054794,120]
[340132170,1728667841929,-1373.39,0.00054794,120]
[340132171,1728667841938,-1373.39,0.00054794,120]
[340132172,1728667841947,-1373.39,0.00054794,120]
[340132173,1728667841956,-1373.39,0.00054794,120]
[340132174,1728667841965,-1373.39,0.00054794,120]
[340132175,1728667841976,-1373.44764398,0.00054794,120]
[340132176,1728667841985,-500.0,0.00054794,120]
[340132177,1728667841994,-500.0,0.00054794,120]
[340132178,1728667842004,-500.0,0.00054794,120]
[340132179,1728667842013,-500.0,0.00054794,120]
[340132180,1728667842023,-500.0,0.00054794,120]
[340132181,1728667842035,-509.94715144,0.00054794,120]
[340132182,1728667842129,-302.11958062,0.00054794,120]
[340132183,1728667842141,-6776.64,0.00054794,120]
[340132184,1728667842150,-500.0,0.00054794,7]
[340132185,1728667842159,-500.0,0.00054794,120]
[340132186,1728667842168,-650.96,0.00054794,2]
[340132187,1728667842177,-500.0,0.00054794,120]
[340132188,1728667842187,-5339.64497003,0.00054794,18]
[340132250,1728667843147,-3374.52502997,0.00054794,18]
[340132252,1728667843158,-626.29,0.00054794,120]
[340132254,1728667843169,-500.0,0.00054794,2]
[340132256,1728667843179,-150.07814443,0.00054794,2]
[340132259,1728667843191,-500.0,0.00054794,2]
[340132261,1728667843202,-500.0,0.00054794,2]
[340132263,1728667843212,-150.4,0.00054795,30]
[340132265,1728667843222,-3329.79024362,0.00055,120]
[340132267,1728667843233,-500.0,0.00055,120]
[340132268,1728667843243,-233.99999901,0.00055,15]
[340132270,1728667843252,-5311.36335014,0.00055058,8]
[340132272,1728667843262,-8425.41088422,0.00055058,8]
[340132365,1728667846122,-351.59094771,0.00054794,120]
[340132454,1728667864131,172.55,0.00032,2]
[340132456,1728668227337,167.871076,0.00026986,2]
[340132457,1728668730687,167.871076,0.00026986,2]
[340132458,1728668733136,-165.472777,0.0003689,2]
[340132459,1728668733163,-165.472777,0.0003753,2]
[340132460,1728668733334,-165.472777,0.00038171,2]
[340132461,1728668733356,-165.472777,0.00038812,2]
[340132462,1728668733377,-550.0,0.00043749,5]
[340132463,1728668733398,-22501.4729886,0.0004375,2]
[340132464,1728668733419,-3748.53653588,0.00044084,120]
[340132465,1728668733440,-153.0,0.00044184,120]
[340132466,1728668733461,-153.0,0.00044184,120]
[340132467,1728668733484,-153.0,0.00044184,120]
[340132468,1728668733506,-153.0,0.00044185,120]
[340132469,1728668733527,-153.0,0.00044185,120]
[340132470,1728668733548,-153.0,0.00044185,120]
[340132471,1728668733569,-153.0,0.00044195,120]
[340132472,1728668733591,-153.0,0.00044195,120]
[340132473,1728668733612,-153.0,0.00044196,120]
[340132474,1728668733633,-153.0,0.00044196,120]
[340132475,1728668733655,-138.38205758,0.00044206,120]
[340132476,1728668841169,-153.0,0.00044172,120]
[340132477,1728668841191,-153.0,0.00044172,120]
[340132478,1728668841214,-153.0,0.00044173,120]
[340132479,1728668841236,-153.0,0.00044173,120]
[340132480,1728668841258,-14.61794242,0.00044206,120]
[340132481,1728668841293,-153.0,0.00044206,120]
[340132482,1728668841313,-153.0,0.00044206,120]
[340132483,1728668841334,-153.0,0.00044207,120]
[340132484,1728668841354,-153.0,0.00044207,120]
[340132485,1728668841375,-153.0,0.00044207,120]
[340132486,1728668841397,-550.0,0.00044216,5]
[340132487,1728668841418,-153.0,0.00044217,120]
[340132488,1728668841440,-153.0,0.00044218,120]
[340132489,1728668841461,-400.0,0.00044658,2]
[340132490,1728668841481,-171.68,0.000451,2]
[340132491,1728668841501,-207.0,0.00046957,5]
[340132492,1728668841526,-3748.53653586,0.00049288,120]
[340132493,1728668841546,-177.82374797,0.00049417,60]
[340132494,1728668841567,-400.0,0.00049517,2]
[340132495,1728668841594,-1655.0,0.0005,120]
[340132496,1728668841614,-153.0,0.00050081,120]
[340132497,1728668841637,-153.0,0.00050081,120]
[340132498,1728668841658,-153.0,0.00050108,120]
[340132499,1728668841679,-153.0,0.00050108,120]
[340132500,1728668841699,-1000.0,0.00052,120]
[340132501,1728668841720,-400.0,0.00054376,2]
[340132502,1728668841741,-3748.53653586,0.00054492,120]
[340132503,1728668841762,-154.43334356,0.0005452,96]
[340132504,1728668841785,-151.0,0.00054625,90]
[340132505,1728668841809,-1000.0,0.00054694,120]
[340132506,1728668841835,-4249.09068012,0.00054784,8]
[340132507,1728668841857,-12295.5685515,0.00054784,8]
[340132508,1728668841886,-222.76,0.00054784,30]
[340132509,1728668841909,-185.64,0.00054784,30]
[340132510,1728668841931,-1910.90617573,0.00054793,120]
[340132511,1728668841956,-500.0,0.00054794,120]
[340132512,1728668841979,-500.0,0.00054794,120]
[340132513,1728668842002,-619.17370486,0.00054794,120]
[340132514,1728668842025,-500.0,0.00054794,120]
[340132515,1728668842048,-500.0,0.00054794,120]
[340132516,1728668842068,-529.78603565,0.00054794,120]
[340132517,1728668842089,-500.0,0.00054794,120]
[340132518,1728668842110,-500.0,0.00054794,120]
[340132519,1728668842130,-500.0,0.00054794,30]
[340132520,1728668842154,-500.0,0.00054794,120]
[340132521,1728668842175,-500.0,0.00054794,120]
[340132522,1728668842196,-500.0,0.00054794,2]
[340132523,1728668842220,-500.0,0.00054794,120]
[340132524,1728668842244,-500.0,0.00054794,120]
[340132525,1728668842269,-500.0,0.00054794,120]
[340132526,1728668842290,-1660.62,0.00054794,2]
[340132527,1728668842313,-1660.62,0.00054794,2]
[340132528,1728668842336,-1660.62,0.00054794,2]
[340132529,1728668842357,-1660.62,0.00054794,2]
[340132530,1728668842378,-1660.62,0.00054794,2]
[340132531,1728668842402,-1660.62,0.00054794,2]
[340132532,1728668842425,-1660.62,0.00054794,2]
[340132533,1728668842446,-1660.62,0.00054794,2]
[340132534,1728668842467,-1660.62,0.00054794,2]
[340132535,1728668842488,-1660.62,0.00054794,2]
[340132536,1728668842509,-804.57,0.00054794,120]
[340132537,1728668842531,-500.0,0.00054794,120]
[340132538,1728668842552,-500.0,0.00054794,120]
[340132539,1728668842574,-500.94527331,0.00054794,120]
[340132540,1728668842598,-500.0,0.00054794,7]
[340132541,1728668842620,-316.32847785,0.00054794,2]
[340132542,1728668842643,-535.18,0.00054794,120]
[340132543,1728668842665,-500.0,0.00054794,120]
[340132544,1728668842688,-500.0,0.00054794,120]
[340132545,1728668842709,-500.0,0.00054794,120]
[340132546,1728668842730,-300.0,0.00054794,120]
[340132547,1728668842750,-500.0,0.00054794,120]
[340132548,1728668842770,-250.0,0.00054794,120]
[340132549,1728668842795,-753.08,0.00054794,120]
[340132550,1728668842816,-500.0,0.00054794,120]
[340132551,1728668842837,-500.0,0.00054794,120]
[340132552,1728668842861,-500.0,0.00054794,120]
[340132553,1728668842883,-888.0,0.00054794,120]
[340132554,1728668842904,-500.0,0.00054794,120]
[340132555,1728668842925,-500.0,0.00054794,120]
[340132556,1728668842946,-531.7543553,0.00054794,120]
[340132557,1728668842967,-500.0,0.00054794,120]
[340132558,1728668842987,-573.48,0.00054794,120]
[340132559,1728668843007,-262.4265211,0.00054794,120]
[340132560,1728668843030,-500.0,0.00054794,120]
[340132561,1728668843050,-500.0,0.00054794,120]
[340132562,1728668843071,-500.0,0.00054794,120]
[340132563,1728668843091,-500.0,0.00054794,120]
[340132564,1728668843112,-603.17950864,0.00054794,120]
[340132565,1728668843132,-500.0,0.00054794,2]
[340132566,1728668843151,-500.0,0.00054794,2]
[340132567,1728668843170,-500.0,0.00054794,2]
[340132568,1728668843190,-500.0,0.00054794,2]
[340132569,1728668843210,-500.0,0.00054794,120]
[340132570,1728668843229,-500.0,0.00054794,120]
[340132571,1728668843250,-302.11958062,0.00054794,120]
[340132572,1728668843270,-650.96,0.00054794,2]
[340132573,1728668843291,-500.0,0.00054794,120]
[340132574,1728668843311,-500.0,0.00054794,2]
[340132575,1728668843331,-500.0,0.00054794,120]
[340132576,1728668843352,-500.0,0.00054794,120]
[340132577,1728668843371,-500.0,0.00054794,120]
[340132578,1728668843392,-500.0,0.00054794,120]
[340132579,1728668843414,-500.0,0.00054794,120]
[340132580,1728668843438,-500.0,0.00054794,120]
[340132581,1728668843459,-500.0,0.00054794,120]
[340132582,1728668843485,-512.58,0.00054794,120]
[340132583,1728668843507,-500.0,0.00054794,120]
[340132584,1728668843529,-574.67392585,0.00054794,120]
[340132585,1728668843549,-500.0,0.00054794,120]
[340132586,1728668843570,-560.25,0.00054794,120]
[340132587,1728668843590,-1220.98,0.00054794,120]
[340132588,1728668843611,-953.43,0.00054794,120]
[340132589,1728668843632,-564.42580949,0.00054794,120]
[340132590,1728668843653,-546.3,0.00054794,120]
[340132591,1728668843673,-342.93723152,0.00054794,120]
[340132592,1728668843694,-500.0,0.00054794,120]
[340132593,1728668843715,-655.07,0.00054794,30]
[340132594,1728668843824,-500.0,0.00054794,120]
[340132595,1728668843845,-500.0,0.00054794,120]
[340132596,1728668843868,-500.0,0.00054794,120]
[340132597,1728668843888,-500.0,0.00054794,120]
[340132598,1728668843910,-1202.61,0.00054794,120]
[340132599,1728668843933,-500.0,0.00054794,120]
[340132600,1728668843956,-500.0,0.00054794,120]
[340132601,1728668843978,-200.0,0.00054794,120]
[340132602,1728668843999,-594.46,0.00054794,120]
[340132603,1728668844020,-518.53,0.00054794,120]
[340132604,1728668844047,-500.0,0.00054794,120]
[340132605,1728668844067,-500.0,0.00054794,120]
[340132606,1728668844087,-1411.29,0.00054794,120]
[340132607,1728668844106,-500.0,0.00054794,120]
[340132608,1728668844127,-500.0,0.00054794,120]
[340132609,1728668844148,-1442.25,0.00054794,120]
[340132610,1728668844168,-500.0,0.00054794,120]
[340132611,1728668844189,-1250.0,0.00054794,120]
[340132612,1728668844209,-587.48,0.00054794,120]
[340132613,1728668844230,-500.0,0.00054794,120]
[340132614,1728668844249,-500.0,0.00054794,2]
[340132615,1728668844269,-1000.0,0.00054794,120]
[340132616,1728668844292,-500.0,0.00054794,120]
[340132617,1728668844314,-708.45,0.00054794,120]
[340132618,1728668844334,-500.0,0.00054794,120]
[340132619,1728668844354,-500.0,0.00054794,120]
[340132620,1728668844374,-350.04928199,0.00054794,120]
[340132621,1728668844395,-500.0,0.00054794,120]
[340132622,1728668844416,-631.06,0.00054794,120]
[340132623,1728668844437,-500.0,0.00054794,7]
[340132624,1728668844457,-743.92,0.00054794,120]
[340132625,1728668844477,-743.92,0.00054794,120]
[340132626,1728668844502,-743.92,0.00054794,120]
[340132627,1728668844530,-743.92,0.00054794,120]
[340132628,1728668844550,-743.92,0.00054794,120]
[340132629,1728668844570,-743.92,0.00054794,120]
[340132630,1728668844590,-743.92,0.00054794,120]
[340132631,1728668844612,-743.92,0.00054794,120]
[340132632,1728668844635,-743.92,0.00054794,120]
[340132633,1728668844661,-743.92,0.00054794,120]
[340132634,1728668844684,-743.92,0.00054794,120]
[340132635,1728668844708,-743.92,0.00054794,120]
[340132636,1728668844728,-743.92,0.00054794,120]
[340132637,1728668844749,-743.92,0.00054794,120]
[340132638,1728668844771,-743.92,0.00054794,120]
[340132639,1728668844792,-743.92,0.00054794,120]
[340132640,1728668844812,-743.92,0.00054794,120]
[340132641,1728668844833,-743.92,0.00054794,120]
[340132642,1728668844855,-743.92,0.00054794,120]
[340132643,1728668844880,-743.92,0.00054794,120]
[340132644,1728668844901,-500.0,0.00054794,120]
[340132645,1728668844926,-743.92,0.00054794,120]
[340132646,1728668844948,-509.94715144,0.00054794,120]
[340132647,1728668844971,-743.92,0.00054794,120]
[340132648,1728668844995,-743.92,0.00054794,120]
[340132649,1728668845017,-743.96764398,0.00054794,120]
[340132650,1728668845042,-500.0,0.00054794,120]
[340132651,1728668845069,-515.91359152,0.00054794,120]
[340132652,1728668845091,-500.0,0.00054794,120]
[340132653,1728668845114,-500.0,0.00054794,120]
[340132654,1728668845134,-500.0,0.00054794,2]
[340132655,1728668845154,-500.0,0.00054794,120]
[340132656,1728668845177,-6776.64,0.00054794,120]
[340132657,1728668845199,-8573.57,0.00054794,18]
[340132658,1728668845219,-500.0,0.00054794,120]
[340132659,1728668845240,-500.0,0.00054794,120]
[340132660,1728668845266,-500.0,0.00054794,120]
[340132661,1728668845292,-500.0,0.00054794,120]
[340132662,1728668845314,-500.0,0.00054794,120]
[340132663,1728668845336,-500.0,0.00054794,120]
[340132664,1728668845357,-500.0,0.00054794,120]
[340132665,1728668845378,-600.2,0.00054794,120]
[340132666,1728668845397,-500.00094351,0.00054794,120]
[340132667,1728668845419,-934.06,0.00054794,120]
[340132668,1728668845440,-500.0,0.00054794,120]
[340132669,1728668845460,-500.0,0.00054794,120]
[340132670,1728668845481,-500.0,0.00054794,120]
[340132671,1728668845501,-500.0,0.00054794,120]
[340132672,1728668845524,-500.0,0.00054794,120]
[340132673,1728668845545,-689.73,0.00054794,120]
[340132674,1728668845568,-525.06,0.00054794,120]
[340132675,1728668845591,-500.0,0.00054794,120]
[340132676,1728668845613,-557.22639201,0.00054794,120]
[340132677,1728668845633,-500.0,0.00054794,120]
[340132678,1728668845654,-500.0,0.00054794,120]
[340132679,1728668845677,-500.0,0.00054794,120]
[340132680,1728668845699,-500.0,0.00054794,120]
[340132681,1728668845720,-500.0,0.00054794,120]
[340132682,1728668845743,-528.65536785,0.00054794,120]
[340132683,1728668845765,-500.0,0.00054794,120]
[340132684,1728668845788,-500.0,0.00054999,120]
[340132685,1728668845808,-1660.62,0.00055057,2]
[340132686,1728668845830,-500.0,0.00055057,2]
[340132687,1728668845854,-4249.09068012,0.00055058,8]
[340132688,1728668845881,-12295.5685515,0.00055058,8]
[340132689,1728668845904,-368.7761515,0.00055066,120]
[340132690,1728668845926,-326.36148515,0.00055066,120]
[340132691,1728668845948,-373.42805733,0.00055066,120]
[340132692,1728668845969,-1660.62,0.00055067,2]
[340132693,1728668845991,-1660.62,0.00055067,2]
[340132694,1728668846011,-1660.62,0.00055067,2]
[340132695,1728668846033,-1660.62,0.00055067,2]
[340132696,1728668846053,-500.0,0.00055067,2]
[340132697,1728668846074,-500.0,0.00055067,2]
[340132698,1728668846097,-437.12537325,0.00055067,2]
[340132699,1728668846120,-500.0,0.00055067,120]
[340132700,1728668846140,-500.0,0.00055068,120]
[340132701,1728668846161,-500.0,0.00055068,2]
[340132702,1728668846181,-500.0,0.00055068,120]
[340132703,1728668846202,-500.0,0.00055068,120]
[340132704,1728668846226,-500.0,0.00055068,120]
[340132705,1728668846249,-500.0,0.00055068,120]
[340132706,1728668846271,-365.84339387,0.00055068,120]
[340132707,1728668846294,-500.0,0.00055068,2]
[340132708,1728668846315,-500.0,0.00055068,120]
[340132709,1728668846337,-500.0,0.00055068,120]
[340132710,1728668846360,-500.0,0.00055068,120]
[340132711,1728668846474,-804.57,0.00055068,120]
[340132712,1728668846499,-500.0,0.00055068,120]
[340132713,1728668846522,-500.0,0.00055068,120]
[340132714,1728668846547,-500.0,0.00055068,7]
[340132715,1728668846568,-535.18,0.00055068,120]
[340132716,1728668846592,-500.0,0.00055068,120]
[340132717,1728668846616,-500.0,0.00055068,120]
[340132718,1728668846637,-500.0,0.00055068,120]
[340132719,1728668846659,-300.0,0.00055068,120]
[340132720,1728668846680,-500.0,0.00055068,120]
[340132721,1728668846701,-250.0,0.00055068,120]
[340132722,1728668846723,-753.08,0.00055068,120]
[340132723,1728668846744,-500.0,0.00055068,120]
[340132724,1728668846765,-500.0,0.00055068,120]
[340132725,1728668846791,-500.0,0.00055068,120]
[340132726,1728668846813,-348.48192233,0.00055068,120]
[340132727,1728668846837,-500.0,0.00055068,120]
[340132728,1728668846861,-500.0,0.00055068,120]
[340132729,1728668846886,-500.0,0.00055068,120]
[340132730,1728668846909,-573.48,0.00055068,120]
[340132731,1728668846931,-500.0,0.00055068,120]
[340132732,1728668846955,-500.0,0.00055068,120]
[340132733,1728668846977,-500.0,0.00055068,120]
[340132734,1728668847000,-500.0,0.00055068,120]
[340132735,1728668847022,-500.0,0.00055068,120]
[340132736,1728668847045,-500.0,0.00055068,120]
[340132737,1728668847066,-650.96,0.00055068,2]
[340132738,1728668847090,-500.0,0.00055068,120]
[340132739,1728668847112,-500.0,0.00055068,2]
[340132740,1728668847134,-500.0,0.00055068,120]
[340132741,1728668847157,-500.0,0.00055068,120]
[340132742,1728668847179,-500.0,0.00055068,120]
[340132743,1728668847202,-500.0,0.00055068,120]
[340132744,1728668847225,-500.0,0.00055068,120]
[340132745,1728668847248,-500.0,0.00055068,120]
[340132746,1728668847273,-512.58,0.00055068,120]
[340132747,1728668847301,-500.0,0.00055068,120]
[340132748,1728668847327,-500.0,0.00055068,120]
[340132749,1728668847350,-560.25,0.00055068,120]